Cogmind - Beta 16 @@@ ROGUE MODE // 2025.12.17 @ 14:36:27 Player: Gentle Jesus Result: Self-destructed Performance ------------- Evolutions (9) 4500 Regions Visited (25) 5000 Robots Destroyed (102) 510 Value Destroyed (3670) 3670 Prototype IDs (42) 840 Alien Tech Used (5) 1000 Bonus (8179) 8179 TOTAL SCORE: 23699 Bonus ------- Follower Combat Kills 475 Met Imprinter 300 Met Warlord at Base 500 MAIN.C Attacked Warlord 500 Found Hidden Lab 3000 Used Core Reset Matrix 3000 Pursued by Intercept 500 Friendly Fire -96 Cogmind --------- Core Integrity 1391/1600 Matter 65/300 Energy 150/150 System Corruption 0% Temperature Cool (88) Movement Walking (120) Location -1/Access Parts ------- > --- POWER (3) -------- Micro Antimatter Reactor > --- PROPULSION (7) --- Centrium Leg Cooled Linear Gravjet > --- UTILITY (11) ----- Advanced Signal Interpreter Core Analyzer Core Analyzer Experimental Core Analyzer Quantum Router > --- WEAPON (5) ------- Enhanced Hardcell Cannon > --- INVENTORY (5) ---- Enhanced Quantum Rifle Matter Neutralizer Peak State ------------ > --- POWER ------------ Vortex Chain Reactor > --- PROPULSION ------- Cooled Gravmag System Cooled Antigrav System Cooled Antigrav System Antigrav Array Combat Linear Gravjet > --- UTILITY ---------- Advanced Cryofiber Web Medium Storage Unit Advanced Hacking Suite Experimental Hacking Suite Ghost Barrier Quantum Router LC Capacitor > --- WEAPON ----------- Vortex Cannon Potential Cannon Vortex Lance > --- INVENTORY -------- Quantum Reactor Quantum Reactor Improved Gyrokinetic Inverter Improved Gyrokinetic Inverter Seismic Detector Advanced Phase Shifter Experimental Core Shielding Transdimensional Reconstructor Vortex Cannon Enhanced Nova Cannon [Rating: 198] Favorites ----------- Power Light Ion Engine Engine Light Ion Engine Power Core Micro Nuclear Core Reactor Vortex Chain Reactor Propulsion Cooled Gravmag System Leg Improved Titanium Leg Wheel Compact Wheel Hover Unit Cooled Gravmag System Flight Unit VTOL Module Utility Medium Storage Unit Device Seismic Detector Storage Medium Storage Unit Processor Improved Signal Interpreter Hackware Hacking Suite Protection Experimental Utility Shielding Artifact LC Capacitor Weapon Ionic Axe Energy Gun EM Pulse Gun Energy Cannon Advanced Plasma Cannon Ballistic Gun Light Assault Rifle Ballistic Cannon Bore Cannon Launcher Grenade Launcher Special Weapon Improved Remote Datajack Slashing Weapon Ionic Axe Piercing Weapon Vortex Lance Build | -11 -10 -10 -9 -9 -7 -6 -6 -5 -5 -5 -5 -4 -4 -4 -4 -4 -4 -4 -3 -3 -3 -3 -2 -2 -1 ------- Run | Yrd Mat Min Mat Min Zio Pro Fac Fac Upp Upp Zhi Pro Fac Was Fac Upp Upp War Pro Res Arm Lab Res Tes Acc Slots Evolved 18 | . . . 2 . . . 6 2 . . . . 2 . . . . . . 2 . . 2 . 2 Power 2 | . . . . . . . 1 . . . . . . . . . . . . . . . . . 1 Propulsion 5 | . . . 2 . . . 2 . . . . . . . . . . . . . . . 1 . . Utility 9 | . . . . . . . 3 2 . . . . . . . . . . . 2 . . 1 . 1 Weapon 2 | . . . . . . . . . . . . . 2 . . . . . . . . . . . . Parts Attached 164 | 7 1 . 1 . . 7 45 14 3 . 7 1 3 . 8 2 . 12 1 2 3 11 11 19 6 Power 21 | 1 . . . . . 2 6 2 . . 1 . . . . 1 . 1 . . . . 2 3 2 Engine 11 | 1 . . . . . 2 4 2 . . . . . . . . . . . . . . . 2 . Core 2 | . . . . . . . 2 . . . . . . . . . . . . . . . . . . Reactor 8 | . . . . . . . . . . . 1 . . . . 1 . 1 . . . . 2 1 2 Propulsion 46 | 2 . . . . . 2 16 5 . . 3 . . . 5 . . 3 . . 1 1 3 4 1 Treads . | . . . . . . . . . . . . . . . . . . . . . . . . . . Leg 15 | . . . . . . . 13 . . . . . . . . . . . . . . . 1 . 1 Wheel 5 | 2 . . . . . . . . . . . . . . . . . . . . . . . 3 . Hover 22 | . . . . . . 1 . 5 . . 3 . . . 5 . . 3 . . 1 1 2 1 . Flight 4 | . . . . . . 1 3 . . . . . . . . . . . . . . . . . . Utility 57 | 2 1 . 1 . . 1 14 4 . . 3 . 2 . 1 1 . 5 1 1 1 5 5 8 1 Device 28 | 1 . . . . . . 7 . . . 1 . 1 . 1 1 . 3 1 1 1 2 3 4 1 Storage 7 | 1 1 . . . . . 1 . . . 1 . 1 . . . . . . . . . . 2 . Processor 8 | . . . . . . . 1 2 . . . . . . . . . 1 . . . . 2 2 . Hackware 7 | . . . . . . . 2 2 . . . . . . . . . 1 . . . 2 . . . Protection 6 | . . . 1 . . 1 3 . . . 1 . . . . . . . . . . . . . . Artifact 1 | . . . . . . . . . . . . . . . . . . . . . . 1 . . . Weapon 40 | 2 . . . . . 2 9 3 3 . . 1 1 . 2 . . 3 . 1 1 5 1 4 2 Energy Gun 9 | 1 . . . . . . 3 . 1 . . . . . . . . 1 . . . 1 . 2 . Energy Cannon 12 | . . . . . . . 2 . . . . 1 1 . . . . 1 . 1 1 2 1 1 1 Ballistic Gun 5 | 1 . . . . . . 2 . . . . . . . 1 . . . . . . 1 . . . Ballistic Cannon 4 | . . . . . . 1 . . . . . . . . 1 . . . . . . . . 1 1 Launcher 1 | . . . . . . 1 . . . . . . . . . . . . . . . . . . . Special Weapon 5 | . . . . . . . 1 1 2 . . . . . . . . . . . . 1 . . . Impact Weapon . | . . . . . . . . . . . . . . . . . . . . . . . . . . Slashing Weapon 2 | . . . . . . . 1 1 . . . . . . . . . . . . . . . . . Piercing Weapon 2 | . . . . . . . . 1 . . . . . . . . . 1 . . . . . . . Special Melee Weapon . | . . . . . . . . . . . . . . . . . . . . . . . . . . Unidentified Prototypes 29 | . . . . . . . 1 1 . . 4 . 1 . 1 . . 8 . 1 1 7 1 3 . Corrupted Parts 2 | . . . . . . . 2 . . . . . . . . . . . . . . . . . . System Corruption 11 | . . . . . . . 11 . . . . . . . . . . . . . . . . . . Parts Lost 77 | . . . 1 . . 8 24 . 2 . . . . . 3 3 . . . 1 . . 18 13 4 Power 13 | . . . . . . 3 2 . . . . . . . . 1 . . . . . . 3 3 1 Propulsion 31 | . . . . . . 3 12 . 2 . . . . . 2 1 . . . . . . 7 4 . Utility 22 | . . . 1 . . . 6 . . . . . . . 1 1 . . . 1 . . 7 3 2 Weapon 11 | . . . . . . 2 4 . . . . . . . . . . . . . . . 1 3 1 Highest Loss Streak 9 | . . . 1 . . 6 5 . 1 . . . . . 2 2 . . . 1 . . 9 9 2 To Critical Strikes 1 | . . . . . . . . . . . . . . . . . . . . . . . 1 . . Average Backups 6 | 1 3 5 6 7 7 4 4 4 5 5 5 4 5 6 9 8 7 9 9 9 9 9 4 4 3 Power 1 | 1 2 2 2 2 2 . 1 1 1 1 1 1 1 1 1 . . . 2 2 2 2 . . . Propulsion . | . . . . . . . . . . . . . . . 2 2 2 1 1 1 1 1 . 1 . Utility 1 | . . 2 2 3 3 3 1 2 2 2 1 1 1 2 2 1 2 1 1 1 . 1 . . . Weapon 1 | . 1 1 2 2 2 . . 1 2 2 2 1 2 2 1 1 1 4 3 2 4 2 2 2 2 Tool/Special . | . . . . . . . . . . . . . . . . . . . . . . . . . . Unused Backups 23 | . . . . . 1 . 6 1 . . 1 . . . 4 1 . 1 . . 4 3 . . 1 Power 4 | . . . . . . . 2 . . . . . . . . . . . . . 2 . . . . Propulsion 6 | . . . . . . . 1 . . . . . . . 1 1 . . . . 1 1 . . 1 Utility 4 | . . . . . . . 1 . . . 1 . . . 1 . . . . . . 1 . . . Weapon 7 | . . . . . 1 . 1 1 . . . . . . 2 . . 1 . . . 1 . . . Tool/Special 2 | . . . . . . . 1 . . . . . . . . . . . . . 1 . . . . Average Slot Usage (%) 73 | . 100 100 73 77 68 51 76 75 90 76 83 95 82 84 85 87 89 86 81 74 75 75 52 52 42 Engine 5 | . 14 14 11 11 11 10 5 6 10 5 5 5 5 5 5 2 . . . . . . . 4 . Reactor 2 | . . . . . . . . . . . 1 5 5 5 5 6 10 9 5 4 4 4 2 . 3 Leg 6 | . . . . . . . 27 . . . . . . . . . . . . . . . . . 2 Wheel 3 | . 28 28 22 22 22 1 . . . . . . . . . . . . . . . . . 7 . Hover 12 | . . . . . . 7 . 9 26 17 23 35 31 31 30 30 26 26 26 23 23 22 15 2 3 Flight 1 | . . . . . . . 2 14 . . . . . . . . . . . . . . . . . Device 7 | . 14 14 6 . . . 4 11 11 11 9 5 5 5 6 11 15 13 10 11 14 9 9 10 5 Storage 5 | . 14 14 11 11 11 10 1 . . . 1 5 6 10 10 8 5 5 5 6 9 7 4 5 . Processor 3 | . . . . . . . 4 8 11 11 9 5 . . . . . . 5 4 4 2 1 10 15 Hackware 8 | . . . . . . . 12 14 17 17 17 17 15 15 15 12 10 10 10 9 9 14 11 4 3 Protection 3 | . . . 1 11 11 10 1 . . . 1 5 5 5 3 2 5 5 5 3 . . . . . Energy Gun 2 | . 14 14 11 11 11 . . . . . . . . . . . . . 3 . . . . 1 . Energy Cannon 2 | . . . . . . . 2 . . . . . . . 1 5 5 5 5 3 3 5 3 3 1 Ballistic Gun 1 | . 14 14 11 11 2 . 3 . . . . . . . . . . . . . . 1 . . . Ballistic Cannon 1 | . . . . . . 9 . . . . . . . . . . 5 . . . . . . . 3 Slashing Weapon 1 | . . . . . . . 2 4 4 5 5 5 5 5 5 5 5 5 . . . . . . . Peak Build Rating 198 | 7 7 7 7 7 7 16 58 65 66 56 95 95 96 88 110 109 102 140 140 147 149 198 188 92 108 Average Rating 65 | 5 7 7 6 7 6 13 42 45 63 56 68 90 87 88 94 100 102 111 129 130 140 161 124 69 88 On Entrance 67 | . 7 7 7 7 7 7 5 29 65 56 56 95 89 88 88 101 102 102 140 124 128 140 164 77 52 Avg Prop Armor Cover (%) 10 | . . . . . . 14 11 12 . . . . . . . 4 . . . . . . 5 8 7 Naked Turns . | . . . . . . . . . . . . . . . . . . . . . . . . . . Heaviest Build 104 | 12 17 17 19 19 19 26 48 26 28 22 37 42 43 43 52 56 56 66 70 66 69 104 77 66 64 Greatest Support 105 | 26 26 26 26 26 26 26 105 44 44 26 59 59 59 59 70 70 58 68 68 70 73 77 89 42 30 Greatest Overweight (x) 25 | . . . . . . 8 10 1 . . . . . . 1 . . . 1 . . 1 25 3 2 Average Overweight (x) . | . . . . . . 1 . . . . . . . . . . . . . . . . . . . Largest Inventory Capacity 10 | 8 10 10 10 10 10 10 10 5 5 5 5 5 10 10 10 10 10 10 10 10 10 10 10 10 5 Average Capacity 8 | 7 9 10 10 10 10 9 6 5 5 5 5 5 6 10 10 10 10 10 10 10 10 10 10 8 5 Most Carried 10 | 4 5 7 7 7 8 8 10 5 5 5 5 5 6 6 10 10 8 10 10 10 10 10 10 7 4 Average Carried 6 | 1 3 6 6 7 7 4 4 4 4 5 4 4 5 6 9 9 8 9 9 8 9 9 5 5 2 Final Capacity 10 | 8 10 10 10 10 10 5 5 5 5 5 5 5 10 10 10 10 10 10 10 10 10 10 10 5 5 Final Carried 10 | 3 5 6 7 7 8 4 5 5 5 5 5 5 6 6 10 8 8 10 10 8 9 10 3 4 2 Class Distribution -------------------- 46% | Hacker-Mutant 25% | Mutant 13% | Scavenger-Mutant 7% | Hacker-Sprinter 3% | Wizard-Mutant Dominant Class ---------------- Mutant | -10/Materials Mutant | -10/Mines Mutant | -9/Materials Mutant | -9/Mines Mutant | -7/Zion Mutant | -6/Proximity Caves Scavenger-Mutant | -6/Factory Hacker-Sprinter | -5/Factory Hacker-Mutant | -5/Upper Caves Hacker-Mutant | -5/Upper Caves Hacker-Mutant | -5/Zhirov Hacker-Sprinter | -4/Proximity Caves Hacker-Sprinter | -4/Factory Hacker-Sprinter | -4/Waste Hacker-Mutant | -4/Factory Hacker-Mutant | -4/Upper Caves Hacker-Mutant | -4/Upper Caves Hacker-Mutant | -4/Warlord Hacker-Mutant | -3/Proximity Caves Hacker-Mutant | -3/Research Hacker-Mutant | -3/Armory Wizard-Skirmisher | -3/Lab Wizard-Mutant | -2/Research Scavenger-Mutant | -2/Testing Hacker-Mutant | -1/Access Resources | -11 -10 -10 -9 -9 -7 -6 -6 -5 -5 -5 -5 -4 -4 -4 -4 -4 -4 -4 -3 -3 -3 -3 -2 -2 -1 ----------- Run | Yrd Mat Min Mat Min Zio Pro Fac Fac Upp Upp Zhi Pro Fac Was Fac Upp Upp War Pro Res Arm Lab Res Tes Acc Matter Collected 2843 | 274 20 . 14 . . 122 874 71 139 5 . 65 85 . 127 120 41 . 140 30 47 90 298 274 7 Remotely . | . . . . . . . . . . . . . . . . . . . . . . . . . . Salvage Created 4586 | 149 62 . 131 . . 192 1882 106 . . . . 311 . 311 60 . . 199 126 58 90 738 171 . Parts 225 | 6 8 . 7 . . 4 75 10 . . . . 12 . 30 3 . . 8 10 2 11 30 9 . Haulers Intercepted 3 | . . . . . . . 1 . . . . . . . 1 . . . . . . . 1 . . Recyclers Shooed 5 | . . . . . . . 3 . . . . . . . 2 . . . . . . . . . . Parts Field Recycled . | . . . . . . . . . . . . . . . . . . . . . . . . . . Retrieved Matter . | . . . . . . . . . . . . . . . . . . . . . . . . . . Parts Self-Destructed 16 | . . . . . . 4 . . 2 . . . . . . 2 . . 8 . . . . . . Prevented 1 | . . . . . . . . . . . . . . . . . 1 . . . . . . . . Parts Restored . | . . . . . . . . . . . . . . . . . . . . . . . . . . Kills | -11 -10 -10 -9 -9 -7 -6 -6 -5 -5 -5 -5 -4 -4 -4 -4 -4 -4 -4 -3 -3 -3 -3 -2 -2 -1 ------- Run | Yrd Mat Min Mat Min Zio Pro Fac Fac Upp Upp Zhi Pro Fac Was Fac Upp Upp War Pro Res Arm Lab Res Tes Acc Combat Hostiles Destroyed 57 | . 3 . 1 . . 4 20 . . . . . . . 7 3 . . 5 4 1 1 7 1 . Melee 9 | . . . . . . . 3 . . . . . . . 5 . . . . 1 . . . . . Guns 15 | . 3 . 1 . . . 7 . . . . . . . . . . . 4 . . . . . . Cannons 22 | . . . . . . 3 4 . . . . . . . 2 3 . . 1 3 1 . 4 1 . AOE 6 | . . . . . . 1 3 . . . . . . . . . . . . . . . 2 . . Classes Destroyed 13 | 2 2 . 1 . . 1 5 1 . . . . . . 1 . . . . . . . . . . Worker 15 | . . . . . . . 6 3 . . . . . . 3 . . . . . . . 3 . . Builder 8 | . . . . . . . 4 . . . . . . . 1 . . . . . . . 2 1 . Tunneler 4 | 2 . . . . . . 1 . . . . . 1 . . . . . . . . . . . . Hauler 3 | . . . . . . . 1 . . . . . . . 1 . . . . . . . 1 . . Recycler 11 | 1 . . 1 . . . 4 . . . . . 2 . . . . . . . . . 2 1 . Operator 2 | . 1 . . . . . . 1 . . . . . . . . . . . . . . . . . Watcher 2 | . . . . . . . . 1 . . . . 1 . . . . . . . . . . . . Swarmer 20 | . 3 . . . . . 1 . . . . . . . 5 3 . . 4 4 . . . . . Cutter 2 | . . . . . . . . . . . . . . . 2 . . . . . . . . . . Grunt 14 | . . . . . . 4 10 . . . . . . . . . . . . . . . . . . Sentry 5 | . . . 1 . . . 3 . . . . . . . . . . . 1 . . . . . . Hunter 3 | . . . . . . . 2 . . . . . . . . . . . . . . . 1 . . Programmer 8 | . . . . . . . 4 . . . . . . . . . . . . . 1 . 2 1 . Tracker 2 | . . . . . . . . . . . . . . . . . . . . . . . 2 . . Combat Programmer 2 | . . . . . . . . . . . . . . . . . . . . . . . 2 . . Best Kill Streak 6 | 3 4 . 1 . . 4 6 2 . . . . 4 . 5 2 . . 3 3 1 1 6 1 . Combat Bots Only 5 | . 3 . 1 . . 4 3 . . . . . . . 5 2 . . 3 3 1 1 3 1 . Max Kills in Single Turn 4 | 1 1 . 1 . . 1 2 1 . . . . 1 . 1 1 . . 2 1 1 1 4 1 . Gunslinging . | . . . . . . . . . . . . . . . . . . . . . . . . . . Exploded 2 | . . . . . . 1 2 . . . . . . . . . . . . . . . 1 . . Melee 1 | . . . . . . . 1 . . . . . . . 1 . . . . 1 . . . . . Uniques/NPCs Destroyed 1 | . . . . . . . . . . . . . . . . . . . . . . 1 . . . A5 (-3/Lab) Combat | -11 -10 -10 -9 -9 -7 -6 -6 -5 -5 -5 -5 -4 -4 -4 -4 -4 -4 -4 -3 -3 -3 -3 -2 -2 -1 -------- Run | Yrd Mat Min Mat Min Zio Pro Fac Fac Upp Upp Zhi Pro Fac Was Fac Upp Upp War Pro Res Arm Lab Res Tes Acc Hostile Shots Fired 1141 | . 17 . 8 . . 70 431 . 21 . . 13 . . 37 36 13 . 14 66 6 18 183 121 87 Missed 395 | . 4 . 3 . . 21 131 . 10 . . 6 . . 15 16 7 . 5 49 3 10 55 49 11 Hits 746 | . 13 . 5 . . 49 300 . 11 . . 7 . . 22 20 6 . 9 17 3 8 128 72 76 Melee 5 | . . . . . . . . . . . . . . . 5 . . . . . . . . . . Projectile 741 | . 13 . 5 . . 49 300 . 11 . . 7 . . 17 20 6 . 9 17 3 8 128 72 76 Critical Strikes 26 | . . . 1 . . 2 9 . . . . . . . 2 . 1 . . . 1 . 2 6 2 Part Disruptions 4 | . . . . . . . . . . . . . . . . 2 . 1 . . . . 1 . . Actively Blocked 1 | . . . . . . . . . . . . . . . . . . 1 . . . . . . . Damage Taken 13099 | . 98 . 75 . . 855 4326 . 310 . . 98 . . 408 382 97 78 214 425 79 199 2717 1587 1151 Core 2797 | . 22 . 13 . . 269 721 . 31 . . 37 . . 99 37 13 26 71 103 . 52 440 654 209 Absorbed by Shields . | . . . . . . . . . . . . . . . . . . . . . . . . . . Redirected to Shielding 153 | . . . . . . . . . . . . 19 . . . 24 10 23 21 56 . . . . . Ignored by Resistances 562 | . . . . . . . . . . . . . . . . . . . . . . . . 42 520 Regen/Repaired (Parts) 187 | . . . . . . . . . . . . . . . . . . 93 . 94 . . . . . Core Remaining (%) 62 | 100 . 91 . . . 29 15 . . . . 93 . . . . . . 78 . . 79 . 18 . Volleys Fired 341 | 7 7 . 6 . . 12 119 . 11 . . 3 . . 5 12 4 . 19 25 38 8 32 21 12 Largest 3 | 2 2 . 2 . . 2 2 . 1 . . 1 . . 2 2 1 . 2 2 1 3 2 2 3 Hottest 233 | 60 60 . 60 . . 70 150 . 100 . . 98 . . 149 149 98 . 138 138 120 200 225 200 233 Shots Fired 475 | 14 14 . 12 . . 13 181 . 11 . . 3 . . 9 17 4 . 26 29 39 17 36 23 27 Gun 180 | 14 14 . 12 . . 1 109 . 5 . . . . . 2 . . . 7 4 . 9 . 3 . Cannon 287 | . . . . . . 11 71 . . . . 3 . . 7 17 4 . 19 25 39 8 36 20 27 Launcher 1 | . . . . . . 1 . . . . . . . . . . . . . . . . . . . Special 7 | . . . . . . . 1 . 6 . . . . . . . . . . . . . . . . Kinetic 151 | 7 7 . 6 . . 11 86 . . . . . . . 5 5 . . . . . 6 . . 18 Thermal 219 | . . . . . . . 60 . 1 . . 3 . . 4 12 4 . 19 25 39 8 22 13 9 Explosive 1 | . . . . . . 1 . . . . . . . . . . . . . . . . . . . Electromagnetic 60 | 7 7 . 6 . . 1 34 . 5 . . . . . . . . . . . . . . . . Entropic 38 | . . . . . . . . . . . . . . . . . . . 7 4 . 3 14 10 . Robot Hit Streak 6 | 6 3 . 3 . . 6 6 . 3 . . . . . 2 3 . . 4 3 1 1 4 2 6 Robot Miss Streak 6 | 1 3 . 4 . . 2 5 . 2 . . . . . 3 6 . . 1 2 3 4 5 4 5 Penetration Max 2 | . . . . . . . 2 . . . . . . . . . . . . . . . . . . Secondary Targets 1 | . 1 . . . . . . . . . . . . . . . . . . . . . . . . Max Gunslinging Chain 1 | . 1 . . . . . . . . . . . . . . . . . . . . . . . . Shots Hit Robots 243 | 10 7 . 6 . . 9 121 6 5 . . . 6 . 19 5 . . 9 5 1 4 15 3 12 Core Hits 133 | 4 6 . 3 . . 7 58 5 . . . . 4 . 9 3 . . 6 3 1 . 17 4 3 Critical Kills 7 | . . . . . . 3 2 . . . . . . . . . . . . . . 1 1 . . Critical Parts Destroyed 5 | . . . . . . 3 2 . . . . . . . . . . . . . . . . . . Critical Strikes 21 | . . . . . . 6 6 . . . . . . . 2 . . . . . . 1 2 1 3 Meltdown 3 | . . . . . . . 1 . . . . . . . . . . . . . . 1 1 . . Destroy 9 | . . . . . . 6 3 . . . . . . . . . . . . . . . . . . Blast 4 | . . . . . . . . . . . . . . . 1 . . . . . . . . . 3 Sever 3 | . . . . . . . 2 . . . . . . . 1 . . . . . . . . . . Sunder 2 | . . . . . . . . . . . . . . . . . . . . . . . 1 1 . Melee Attacks 117 | . . . . . . . 38 15 6 2 . 3 9 . 28 1 . 1 . 10 1 3 . . . Impact . | . . . . . . . . . . . . . . . . . . . . . . . . . . Slashing 99 | . . . . . . . 38 12 6 2 . 3 9 . 28 1 . . . . . . . . . Piercing 3 | . . . . . . . . 3 . . . . . . . . . . . . . . . . . Entropic 15 | . . . . . . . . . . . . . . . . . . 1 . 10 1 3 . . . Sneak Attacks 24 | . . . . . . . 9 3 1 . . . 4 . 7 . . . . . . . . . . Combat Hostiles . | . . . . . . . . . . . . . . . . . . . . . . . . . . Follow-up Attacks . | . . . . . . . . . . . . . . . . . . . . . . . . . . Damage Inflicted 11489 | 125 77 . 64 . . 342 4508 423 104 . . . 543 . 1174 179 . . 474 233 53 103 2367 258 462 Guns 2147 | 125 77 . 64 . . 15 1525 . 8 . . . . . 14 . . . 313 . . 6 . . . Cannons 4168 | . . . . . . 177 1261 . . . . . . . 65 179 . . 161 135 53 97 1432 146 462 Explosions 2023 | . . . . . . 150 839 . . . . . . . . . . . . . . . 935 99 . Melee 3138 | . . . . . . . 883 423 96 . . . 543 . 1095 . . . . 98 . . . . . Ramming 13 | . . . . . . . . . . . . . . . . . . . . . . . . 13 . Kinetic 2035 | 30 38 . 25 . . 177 1298 . . . . . . . 79 83 . . . . . 6 . . 299 Thermal 4338 | . . . . . . . 1535 . . . . . . . . 96 . . 161 135 53 97 1914 184 163 Explosive 474 | . . . . . . 150 214 . . . . . . . . . . . . . . . 110 . . Electromagnetic 774 | 95 39 . 39 . . 15 578 . 8 . . . . . . . . . . . . . . . . Impact . | . . . . . . . . . . . . . . . . . . . . . . . . . . Slashing 3040 | . . . . . . . 883 423 96 . . . 543 . 1095 . . . . . . . . . . Piercing . | . . . . . . . . . . . . . . . . . . . . . . . . . . Entropic 815 | . . . . . . . . . . . . . . . . . . . 313 98 . . 343 61 . Highest Corruption 17 | . . . . . . . 17 . . . . . . 8 8 8 8 10 . 1 1 4 4 6 . Average Corruption 8 | . . . . . . . 13 . . . . . . 8 8 8 8 9 . 1 1 3 3 4 . Corruption Purged . | . . . . . . . . . . . . . . . . . . . . . . . . . . Corruption Blocked . | . . . . . . . . . . . . . . . . . . . . . . . . . . Effects 117 | . . . . . . . 63 . . . . . . 1 12 11 7 1 . 1 3 4 2 12 . Message Errors 27 | . . . . . . . 15 . . . . . . . 2 3 4 . . . 1 . . 2 . Matter Fused 26 | . . . . . . . 12 . . . . . . . 2 3 2 . . 1 1 1 1 3 . Heat Flow Errors 14 | . . . . . . . 9 . . . . . . . 1 2 . . . . . 1 . 1 . Energy Discharges 18 | . . . . . . . 10 . . . . . . 1 4 1 1 . . . . 1 . . . Parts Rejected 1 | . . . . . . . . . . . . . . . 1 . . . . . . . . . . Parts Fused 1 | . . . . . . . . . . . . . . . . . . . . . . . . 1 . Data Loss (minor) 7 | . . . . . . . 4 . . . . . . . . 1 . 1 . . . . . 1 . Data Loss (major) 7 | . . . . . . . 4 . . . . . . . . 1 . . . . . . . 2 . Misfires 6 | . . . . . . . 3 . . . . . . . 1 . . . . . 1 . . 1 . Alerts 3 | . . . . . . . . . . . . . . . 1 . . . . . . . 1 1 . Misdirections 4 | . . . . . . . 4 . . . . . . . . . . . . . . . . . . Weapon Failures 3 | . . . . . . . 2 . . . . . . . . . . . . . . 1 . . . Overload Shots . | . . . . . . . . . . . . . . . . . . . . . . . . . . Overflow Damage 1323 | . . . . . . . 385 . . . . . 100 . 326 16 . . 22 68 . . 406 . . Projectiles 275 | . . . . . . . 31 . . . . . . . . 16 . . 22 . . . 206 . . Explosions 327 | . . . . . . . 127 . . . . . . . . . . . . . . . 200 . . Melee 721 | . . . . . . . 227 . . . . . 100 . 326 . . . . 68 . . . . . Knockbacks 9 | . . . . . . 1 . . . . . . . . . 2 . . . . . . . . 6 Impact . | . . . . . . . . . . . . . . . . . . . . . . . . . . Kinetic 8 | . . . . . . 1 . . . . . . . . . 1 . . . . . . . . 6 Secondary 1 | . . . . . . . . . . . . . . . . 1 . . . . . . . . . Self-Inflicted Damage 198 | . . . . . . . . . . . . . . . . . . . . . . . 192 6 . Shots 4 | . . . . . . . . . . . . . . . . . . . . . . . 4 . . Rammed 2 | . . . . . . . . . . . . . . . . . . . . . . . . 2 . Targets Rammed 2 | . . . . . . . . . . . . . . . . . . . . . . . . 2 . Kicked . | . . . . . . . . . . . . . . . . . . . . . . . . . . Crushed . | . . . . . . . . . . . . . . . . . . . . . . . . . . Highest Temperature 473 | 40 40 . 37 . . 275 473 . 115 . . 210 . . 239 378 132 . 80 113 343 331 101 175 374 Average Temperature 106 | 22 25 . 19 . . 149 131 . 54 . . 103 . . 46 120 61 . 38 46 100 170 35 84 145 Received Heat Transfer 1799 | . . . 36 . . 343 1021 . 63 . . 18 . . 18 39 . . 9 9 9 . 54 180 . Effects 14 | . . . . . . . 7 . . . . 3 . . . 1 . . . . 1 . . . 2 Shutdowns 2 | . . . . . . . 1 . . . . . . . . 1 . . . . . . . . . Energy Bleed 1 | . . . . . . . . . . . . . . . . . . . . . . . . . 1 Interference 8 | . . . . . . . 5 . . . . 3 . . . . . . . . . . . . . Matter Decay 3 | . . . . . . . 1 . . . . . . . . . . . . . 1 . . . 1 Siege Activations . | . . . . . . . . . . . . . . . . . . . . . . . . . . Martial Activations . | . . . . . . . . . . . . . . . . . . . . . . . . . . Shielding Activations . | . . . . . . . . . . . . . . . . . . . . . . . . . . Robots Disrupted . | . . . . . . . . . . . . . . . . . . . . . . . . . . Combat Hostiles . | . . . . . . . . . . . . . . . . . . . . . . . . . . Robots Corrupted 2 | . . . . . . . 2 . . . . . . . . . . . . . . . . . . Combat Hostiles 2 | . . . . . . . 2 . . . . . . . . . . . . . . . . . . Parts Fried 3 | . . . . . . . 3 . . . . . . . . . . . . . . . . . . Impact Corruptions . | . . . . . . . . . . . . . . . . . . . . . . . . . . Robots Melted 3 | . . . . . . . 1 . . . . . . . . . . . . . . 1 1 . . Combat Hostiles 3 | . . . . . . . 1 . . . . . . . . . . . . . . 1 1 . . Parts Melted 7 | . . . . . . . 2 . . . . . . . . . . . . . . 1 4 . . Heat Transferred 4464 | . . . . . . . 1809 . . . . . . . . 150 . . 250 200 37 57 1579 234 148 Parts Sabotaged . | . . . . . . . . . . . . . . . . . . . . . . . . . . Parts Stolen . | . . . . . . . . . . . . . . . . . . . . . . . . . . Parts Stripped . | . . . . . . . . . . . . . . . . . . . . . . . . . . Power Chain Reactions . | . . . . . . . . . . . . . . . . . . . . . . . . . . Alert | -11 -10 -10 -9 -9 -7 -6 -6 -5 -5 -5 -5 -4 -4 -4 -4 -4 -4 -4 -3 -3 -3 -3 -2 -2 -1 ------- Run | Yrd Mat Min Mat Min Zio Pro Fac Fac Upp Upp Zhi Pro Fac Was Fac Upp Upp War Pro Res Arm Lab Res Tes Acc Maximum Alert Level 2 | . . . . . . . 2 1 . . . . . . 1 . . . . . . . 1 1 . Low Security (%) 79 | 100 100 100 100 100 . . 65 41 . . . . 100 100 91 . . . . 100 100 . 65 89 100 Level 1 17 | . . . . . . . 25 58 . . . . . . 8 . . . . . . . 34 10 . Level 2 3 | . . . . . . . 8 . . . . . . . . . . . . . . . . . . Level 3 . | . . . . . . . . . . . . . . . . . . . . . . . . . . Level 4 . | . . . . . . . . . . . . . . . . . . . . . . . . . . Level 5 . | . . . . . . . . . . . . . . . . . . . . . . . . . . High Security . | . . . . . . . . . . . . . . . . . . . . . . . . . . Max Security . | . . . . . . . . . . . . . . . . . . . . . . . . . . Peak Influence 452 | 5 67 19 30 9 . . 452 245 . . . . 29 3 234 . . . . 127 81 . 304 254 129 Initial 219 | . 3 19 7 9 . . 46 219 . . . . . 3 . . . . . . 56 . . 159 129 Average 108 | 1 6 19 12 5 . . 161 205 . . . . 13 1 62 . . . . 36 32 . 132 129 91 Influence Increases 4154 | 15 75 . 35 . . 180 1296 119 95 . . 15 56 . 409 190 75 . 140 217 161 . 659 393 24 Destroy 0b10 Robot/C 1400 | . 60 . 20 . . 80 540 40 80 . . . . . 140 60 . . 100 80 40 . 140 20 . Destroy 0b10 Robot/NC 235 | 15 5 . 5 . . . 90 25 . . . . 20 . 25 . . . . . . . 40 10 . Destroy Leader 310 | . 10 . 10 . . 10 142 2 10 . . . 2 . 22 10 . . 10 10 10 . 62 . . Allied During Kill 27 | . . . . . . . 13 . 5 . . . . . . . . . . . 9 . . . . Successful Hack 158 | . . . . . . . 21 36 . . . . . . 10 . . . . 46 21 . 24 . . Disable Machine 375 | . . . . . . . 210 . . . . . . . . . . . . 15 45 . 30 75 . Destroy Structure 509 | . . . . . . . 85 16 . . . . 4 . 32 . . . . 36 36 . 213 63 24 Partial Spotted 90 | . . . . . . . . . . . . . 30 . 15 . . . . . . . 30 15 . Lose Combat Pursuer 1050 | . . . . . . 90 195 . . . . 15 . . 165 120 75 . 30 30 . . 120 210 . Influence Decreases 4121 | 10 29 32 29 25 . 106 922 409 189 64 . 15 47 9 175 248 124 127 140 108 266 4 375 461 207 Entered New Map 915 | . 2 32 12 16 . . 28 229 59 13 . . . 6 . 88 34 127 . . 53 4 . 125 87 Time Decay 2266 | 10 27 . 17 9 . 66 614 140 110 51 . 15 47 3 135 130 90 . 140 79 102 . 195 206 80 Lost Part 720 | . . . . . . 40 240 . 20 . . . . . 30 30 . . . 10 . . 180 130 40 Lost Ally 164 | . . . . . . . 40 40 . . . . . . 10 . . . . 19 55 . . . . Purge Threat 56 | . . . . . . . . . . . . . . . . . . . . . 56 . . . . Squads Dispatched 34 | . 1 . . . . 1 13 3 . . . . 1 . 4 . . . . 2 2 . 1 5 1 Investigation 8 | . . . . . . . 3 2 . . . . . . . . . . . 1 . . . 1 1 Extermination 9 | . . . . . . . 4 1 . . . . . . . . . . . 1 1 . . 2 . Reinforcement 12 | . 1 . . . . . 3 . . . . . 1 . 4 . . . . . 1 . . 2 . Assault 1 | . . . . . . 1 . . . . . . . . . . . . . . . . . . . Garrison 3 | . . . . . . . 3 . . . . . . . . . . . . . . . . . . Intercept 1 | . . . . . . . . . . . . . . . . . . . . . . . 1 . . Searches Triggered . | . . . . . . . . . . . . . . . . . . . . . . . . . . Construction Impeded 3 | . . . . . . . 2 . . . . . . . 1 . . . . . . . . . . Haulers Reinforced 1 | . . . . . . . 1 . . . . . . . . . . . . . . . . . . Active Scanning Responses . | . . . . . . . . . . . . . . . . . . . . . . . . . . Cargo Convoy Interrupts . | . . . . . . . . . . . . . . . . . . . . . . . . . . Stealth | -11 -10 -10 -9 -9 -7 -6 -6 -5 -5 -5 -5 -4 -4 -4 -4 -4 -4 -4 -3 -3 -3 -3 -2 -2 -1 --------- Run | Yrd Mat Min Mat Min Zio Pro Fac Fac Upp Upp Zhi Pro Fac Was Fac Upp Upp War Pro Res Arm Lab Res Tes Acc Distress Signals 19 | . 2 . . . . . 2 . . . . . . . . . . . . 2 . . 10 2 1 Communications Jammed . | . . . . . . . . . . . . . . . . . . . . . . . . . . Distress Signals . | . . . . . . . . . . . . . . . . . . . . . . . . . . Times Spotted 211 | . 3 . 1 . . 22 40 3 9 . . 2 2 6 16 11 6 . 7 20 12 1 25 22 3 Peak Tracking Total 15 | . 2 . 1 . . 12 4 1 6 . . 1 1 6 8 5 5 . 5 12 15 1 7 12 2 Tactical Retreats 34 | . . . . . . 2 8 . . . . 1 . . 4 6 3 . 1 1 . . 4 4 . Traps | -11 -10 -10 -9 -9 -7 -6 -6 -5 -5 -5 -5 -4 -4 -4 -4 -4 -4 -4 -3 -3 -3 -3 -2 -2 -1 ------- Run | Yrd Mat Min Mat Min Zio Pro Fac Fac Upp Upp Zhi Pro Fac Was Fac Upp Upp War Pro Res Arm Lab Res Tes Acc Traps Triggered 11 | . . . . . . . 6 . . . . . 1 . . 1 . 1 . 1 . . . 1 . Indirectly . | . . . . . . . . . . . . . . . . . . . . . . . . . . Trap Hack Attempts . | . . . . . . . . . . . . . . . . . . . . . . . . . . Triggered . | . . . . . . . . . . . . . . . . . . . . . . . . . . Disarmed . | . . . . . . . . . . . . . . . . . . . . . . . . . . Reprogrammed . | . . . . . . . . . . . . . . . . . . . . . . . . . . Reused . | . . . . . . . . . . . . . . . . . . . . . . . . . . Traps Extracted . | . . . . . . . . . . . . . . . . . . . . . . . . . . Installed . | . . . . . . . . . . . . . . . . . . . . . . . . . . Triggered . | . . . . . . . . . . . . . . . . . . . . . . . . . . Machines | -11 -10 -10 -9 -9 -7 -6 -6 -5 -5 -5 -5 -4 -4 -4 -4 -4 -4 -4 -3 -3 -3 -3 -2 -2 -1 ---------- Run | Yrd Mat Min Mat Min Zio Pro Fac Fac Upp Upp Zhi Pro Fac Was Fac Upp Upp War Pro Res Arm Lab Res Tes Acc Machines Disabled 29 | . . . . . . . 14 . . . . . . . . . . . . 1 3 4 2 5 . Max in Single Turn 2 | . . . . . . . 2 . . . . . . . . . . . . . 1 1 1 1 . Garrison Access 2 | . . . . . . . 1 . . . . . . . . . . . . 1 . . . . . Machines Repaired . | . . . . . . . . . . . . . . . . . . . . . . . . . . Machines Dismantled . | . . . . . . . . . . . . . . . . . . . . . . . . . . Machines Sabotaged . | . . . . . . . . . . . . . . . . . . . . . . . . . . Overloaded Fab Kills . | . . . . . . . . . . . . . . . . . . . . . . . . . . Hacking | -11 -10 -10 -9 -9 -7 -6 -6 -5 -5 -5 -5 -4 -4 -4 -4 -4 -4 -4 -3 -3 -3 -3 -2 -2 -1 --------- Run | Yrd Mat Min Mat Min Zio Pro Fac Fac Upp Upp Zhi Pro Fac Was Fac Upp Upp War Pro Res Arm Lab Res Tes Acc Machines Accessed 51 | . 1 . . . . . 8 6 1 . 3 . 1 . 5 . . 5 . 7 3 3 2 4 2 Terminals 20 | . 1 . . . . . 4 2 . . . . 1 . 3 . . . . 2 3 . 1 2 1 Fabricators 5 | . . . . . . . 2 1 . . . . . . 1 . . . . 1 . . . . . Repair Stations 1 | . . . . . . . . . . . . . . . . . . . . 1 . . . . . Recycling Units 2 | . . . . . . . . 1 . . . . . . 1 . . . . . . . . . . Scanalyzers 8 | . . . . . . . 1 2 . . . . . . . . . . . 2 . . . 2 1 Garrison Access 3 | . . . . . . . 1 . . . . . . . . . . . . 1 . . 1 . . Total Hacks 139 | . 3 . . . . . 21 11 1 . 13 . 1 . 11 . . 9 . 23 11 3 12 16 4 Successful 69 | . . . . . . . 9 8 1 . 13 . 1 . 5 . . 9 . 12 3 3 2 3 . Failed 67 | . 3 . . . . . 11 2 . . . . . . 6 . . . . 10 8 . 10 13 4 Catastrophic 10 | . . . . . . . 1 1 . . . . . . 1 . . . . 3 1 . . 1 2 Database Lockouts 3 | . . . . . . . 1 1 . . . . . . . . . . . 1 . . . . . Manual 38 | . 3 . . . . . 3 3 . . . . . . 4 . . . . 7 5 1 9 1 2 Terminals 62 | . 3 . . . . . 11 3 . . . . 1 . 5 . . . . 7 11 . 10 9 2 Fabricators 12 | . . . . . . . 5 2 . . . . . . 2 . . . . 3 . . . . . Repair Stations 2 | . . . . . . . . . . . . . . . . . . . . 2 . . . . . Recycling Units 6 | . . . . . . . . 2 . . . . . . 4 . . . . . . . . . . Scanalyzers 24 | . . . . . . . 2 4 . . . . . . . . . . . 9 . . . 7 2 Garrison Access 7 | . . . . . . . 3 . . . . . . . . . . . . 2 . . 2 . . Terminal Hacks 40 | . . . . . . . 4 1 1 . 13 . 1 . 1 . . 9 . 1 3 3 2 1 . Record 11 | . . . . . . . . . . . 5 . . . . . . 3 . . 1 2 . . . Robot Analysis 4 | . . . . . . . . . . . 4 . . . . . . . . . . . . . . Prototype ID Bank 8 | . . . . . . . . . . . 4 . . . . . . 4 . . . . . . . Open Door 3 | . . . . . . . . . 1 . . . . . . . . 2 . . . . . . . Branch Access Points 5 | . . . . . . . . 1 . . . . 1 . 1 . . . . 1 . . 1 . . Alert Level 2 | . . . . . . . 1 . . . . . . . . . . . . . . . . 1 . Unreport Threat 1 | . . . . . . . . . . . . . . . . . . . . . 1 . . . . Locate Traps 1 | . . . . . . . 1 . . . . . . . . . . . . . . . . . . Recall Reinforcements 1 | . . . . . . . . . . . . . . . . . . . . . 1 . . . . Hauler Manifests 1 | . . . . . . . 1 . . . . . . . . . . . . . . . . . . Zone Layout 2 | . . . . . . . 1 . . . . . . . . . . . . . . . 1 . . Release Object 1 | . . . . . . . . . . . . . . . . . . . . . . 1 . . . Fabricator Hacks 8 | . . . . . . . 3 2 . . . . . . 1 . . . . 2 . . . . . Load Schematic 5 | . . . . . . . 2 1 . . . . . . 1 . . . . 1 . . . . . Build 3 | . . . . . . . 1 1 . . . . . . . . . . . 1 . . . . . Repair Station Hacks 2 | . . . . . . . . . . . . . . . . . . . . 2 . . . . . Scan Component 1 | . . . . . . . . . . . . . . . . . . . . 1 . . . . . Repair 1 | . . . . . . . . . . . . . . . . . . . . 1 . . . . . Recycling Unit Hacks 4 | . . . . . . . . 2 . . . . . . 2 . . . . . . . . . . Report Inventory 2 | . . . . . . . . 1 . . . . . . 1 . . . . . . . . . . Retrieve Components 2 | . . . . . . . . 1 . . . . . . 1 . . . . . . . . . . Scanalyzer 12 | . . . . . . . 1 3 . . . . . . . . . . . 6 . . . 2 . Insert Component 4 | . . . . . . . . 1 . . . . . . . . . . . 3 . . . . . Analyze 3 | . . . . . . . . 1 . . . . . . . . . . . 2 . . . . . Retrieve Study 5 | . . . . . . . 1 1 . . . . . . . . . . . 1 . . . 2 . Garrison Access Hacks 2 | . . . . . . . 1 . . . . . . . . . . . . 1 . . . . . Seal Access 2 | . . . . . . . 1 . . . . . . . . . . . . 1 . . . . . Unauthorized Hacks 1 | . . . . . . . . . . . . . . . 1 . . . . . . . . . . Terminals 1 | . . . . . . . . . . . . . . . 1 . . . . . . . . . . Assimilate 1 | . . . . . . . . . . . . . . . 1 . . . . . . . . . . Fabricators . | . . . . . . . . . . . . . . . . . . . . . . . . . . Repair Stations . | . . . . . . . . . . . . . . . . . . . . . . . . . . Recycling Units . | . . . . . . . . . . . . . . . . . . . . . . . . . . Scanalyzers . | . . . . . . . . . . . . . . . . . . . . . . . . . . Garrison Access . | . . . . . . . . . . . . . . . . . . . . . . . . . . Data Cores Recovered 1 | . . . . . . . . 1 . . . . . . . . . . . . . . . . . Used . | . . . . . . . . . . . . . . . . . . . . . . . . . . Hacking Detections 33 | . 1 . . . . . 7 4 . . . . 1 . 3 . . . . 6 3 . 2 4 2 Full Trace Events 7 | . . . . . . . 3 2 . . . . . . . . . . . 1 . . . . 1 Feedback Events . | . . . . . . . . . . . . . . . . . . . . . . . . . . Feedback Blocked . | . . . . . . . . . . . . . . . . . . . . . . . . . . Robot Schematics Acquired 3 | . . . . . 3 . . . . . . . . . . . . . . . . . . . . Robots Built 6 | . . . . . . . 2 2 . . . . . . . . . . . 2 . . . . . Authchips . | . . . . . . . . . . . . . . . . . . . . . . . . . . Time 270 | . . . . . . . 116 38 . . . . . . . . . . . 116 . . . . . Total Robot Build Rating 18 | . . . . . . . 6 6 . . . . . . . . . . . 6 . . . . . Part Schematics Acquired 18 | . . . . . 15 . . 1 . . . . . . . . . . . 2 . . . . . Parts Built . | . . . . . . . . . . . . . . . . . . . . . . . . . . Authchips . | . . . . . . . . . . . . . . . . . . . . . . . . . . Time . | . . . . . . . . . . . . . . . . . . . . . . . . . . Total Part Build Rating . | . . . . . . . . . . . . . . . . . . . . . . . . . . Part Studies Acquired 5 | . . . . . . . 1 1 . . . . . . . . . . . 1 . . . 2 . Parts Repaired 1 | . . . . . . . . . . . . . . . . . . . . 1 . . . . . Time 18 | . . . . . . . . . . . . . . . . . . . . 18 . . . . . Parts Recycled . | . . . . . . . . . . . . . . . . . . . . . . . . . . Recycled Matter . | . . . . . . . . . . . . . . . . . . . . . . . . . . Retrieved Matter . | . . . . . . . . . . . . . . . . . . . . . . . . . . Retrieved Components 5 | . . . . . . . . 3 . . . . . . 2 . . . . . . . . . . Parts Scanalyzed 3 | . . . . . . . . 1 . . . . . . . . . . . 2 . . . . . Part Schematics Acquired 3 | . . . . . . . . 1 . . . . . . . . . . . 2 . . . . . Parts Damaged . | . . . . . . . . . . . . . . . . . . . . . . . . . . Bothacking | -11 -10 -10 -9 -9 -7 -6 -6 -5 -5 -5 -5 -4 -4 -4 -4 -4 -4 -4 -3 -3 -3 -3 -2 -2 -1 ------------ Run | Yrd Mat Min Mat Min Zio Pro Fac Fac Upp Upp Zhi Pro Fac Was Fac Upp Upp War Pro Res Arm Lab Res Tes Acc Used RIF Installer . | . . . . . . . . . . . . . . . . . . . . . . . . . . Robots Hacked 2 | . . . . . . . 1 . 1 . . . . . . . . . . . . . . . . Non-combat . | . . . . . . . . . . . . . . . . . . . . . . . . . . Combat . | . . . . . . . . . . . . . . . . . . . . . . . . . . Robot Hacks Applied . | . . . . . . . . . . . . . . . . . . . . . . . . . . Manual 2 | . . . . . . . 1 . 1 . . . . . . . . . . . . . . . . Relay Couplers Released . | . . . . . . . . . . . . . . . . . . . . . . . . . . Fabnet Peak Effective % . | . . . . . . . . . . . . . . . . . . . . . . . . . . Robots Rewired 3 | . . . . . . . . . . . . . . . . . . . . . 3 . . . . Allies Hacked 1 | . . . . . . . . . . . . . . . . . . . . . 1 . . . . Hacks Repelled . | . . . . . . . . . . . . . . . . . . . . . . . . . . Allies | -11 -10 -10 -9 -9 -7 -6 -6 -5 -5 -5 -5 -4 -4 -4 -4 -4 -4 -4 -3 -3 -3 -3 -2 -2 -1 -------- Run | Yrd Mat Min Mat Min Zio Pro Fac Fac Upp Upp Zhi Pro Fac Was Fac Upp Upp War Pro Res Arm Lab Res Tes Acc Total Allies 12 | . . . . . . . 3 2 1 . . . . . 1 . . . . 2 3 . . . . Largest Group 3 | . . . . . . . 2 2 1 . . . . . 1 . . . . 2 3 . . . . Highest-Rated Group 168 | . . . . . . . 85 42 85 . . . . . 10 . . . . 42 168 . . . . Highest-Rated Ally 85 | . . . . . . . 85 21 85 . . . . . 10 . . . . 21 56 . . . . Total Orders . | . . . . . . . . . . . . . . . . . . . . . . . . . . Ally Attacks 63 | . . . . . . . 27 13 16 . . . . . . . . . . 4 3 . . . . Total Damage 2640 | . . . . . . . 1091 337 957 . . . . . . . . . . 83 172 . . . . Kills 17 | . . . . . . . 10 2 4 . . . . . . . . . . . 1 . . . . Allies Corrupted 2 | . . . . . . . . . . . . . . . . . . . . . 2 . . . . Allies Melted 1 | . . . . . . . . . . . . . . . . . . . . . . . 1 . . Intel | -11 -10 -10 -9 -9 -7 -6 -6 -5 -5 -5 -5 -4 -4 -4 -4 -4 -4 -4 -3 -3 -3 -3 -2 -2 -1 ------- Run | Yrd Mat Min Mat Min Zio Pro Fac Fac Upp Upp Zhi Pro Fac Was Fac Upp Upp War Pro Res Arm Lab Res Tes Acc Active Infowar (turns) 5530 | 4 490 17 37 . . . 690 287 222 243 81 124 102 37 322 277 187 287 576 393 313 204 344 293 . Optics 1486 | . . . . . . . . . . . . . . . . . . 55 576 393 313 149 . . . Sensors 2063 | . . . . . . . 661 287 222 243 81 124 102 37 306 . . . . . . . . . . Terrain 464 | . . . . . . . 17 . . . . . . . . . . . . . . . 154 293 . Seismic 3850 | 4 490 17 37 . . . 83 287 222 243 52 . . . 7 277 187 234 544 393 313 150 260 50 . Cloaking 486 | . . . . . . . . . . . . . . . . 70 187 229 . . . . . . . Jamming 36 | . . . . . . . . . . . . . 27 . 9 . . . . . . . . . . Robot Analysis Total 4 | . . . . . . . . . . . 4 . . . . . . . . . . . . . . Derelict Logs Recovered 7 | . . . . . 2 . . . 2 1 . 1 . . . 1 . . . . . . . . . Drone Launches . | . . . . . . . . . . . . . . . . . . . . . . . . . . Drone Recoveries . | . . . . . . . . . . . . . . . . . . . . . . . . . . Exploration | -11 -10 -10 -9 -9 -7 -6 -6 -5 -5 -5 -5 -4 -4 -4 -4 -4 -4 -4 -3 -3 -3 -3 -2 -2 -1 ------------- Run | Yrd Mat Min Mat Min Zio Pro Fac Fac Upp Upp Zhi Pro Fac Was Fac Upp Upp War Pro Res Arm Lab Res Tes Acc Turns Passed 9013 | 96 490 17 78 31 599 973 2026 287 222 243 81 124 102 37 337 277 187 287 576 393 313 211 433 423 170 Spaces Moved 9691 | 60 156 17 66 35 657 450 1587 597 341 464 149 286 168 120 561 445 255 614 496 489 442 258 490 401 87 Core 44 | 2 . . . . . 33 8 . . . . . . . . . . . . . . . 1 . . Treads . | . . . . . . . . . . . . . . . . . . . . . . . . . . Legs 992 | . . . . . . . 872 . . . . . . . . . . . . . . . 49 . 71 Wheels 1243 | 58 156 17 66 35 657 53 . . . . . . . . . . . . . . . . . 201 . Hover 6091 | . . . . . . 219 . 128 341 464 149 286 168 120 561 445 255 614 496 489 442 258 440 200 16 Flight 1321 | . . . . . . 145 707 469 . . . . . . . . . . . . . . . . . Fastest Speed 30 | 50 90 90 90 90 90 40 30 30 40 45 31 31 31 31 31 38 42 36 36 36 36 38 35 40 40 Average Speed 60 | 88 90 90 90 90 90 144 84 33 41 45 39 31 31 31 34 38 42 40 58 36 37 51 59 81 135 Slowest Speed 1300 | 90 90 90 90 90 90 450 550 110 45 45 45 31 31 31 90 42 42 42 86 36 38 98 1300 260 260 Overloaded Moves . | . . . . . . . . . . . . . . . . . . . . . . . . . . Propulsion Burnouts . | . . . . . . . . . . . . . . . . . . . . . . . . . . Robots Hopped . | . . . . . . . . . . . . . . . . . . . . . . . . . . Potential Cave-ins 18 | . . . . . . . 1 . . . . 3 . . . . . . 2 2 4 . . 6 . Cave-ins Triggered . | . . . . . . . . . . . . . . . . . . . . . . . . . . Teleports 2 | . . . . . . . . . . . . . . . . . . . . . 1 . 1 . . Exploration Rate (%) 40 | 3 31 5 11 15 81 67 32 20 40 54 60 48 7 81 15 56 47 91 63 21 24 98 20 51 2 Regions Visited 25 Branch Regions 15 Pre-discovered Areas 3 | . . . . . . . . . . . 3 . . . . . . . . . . . . . . Known Exits Taken 10 | . . . . . . . 1 1 1 1 1 1 . . 1 . . . . 1 . . 1 1 . Unknown Exits Taken 13 | 1 1 1 1 1 1 1 . . . . . . . . . 1 1 1 1 . 1 1 . . . Scrap Searched 17 | . . . . . 3 2 . . 1 3 . 1 . . . 3 1 . 3 . . . . . . Spaces Dug 82 | . . . . . . . 8 8 5 2 . 3 2 . 11 1 1 1 7 13 9 . 4 7 . Terrain Destroyed 335 | . . . . . . 6 61 8 5 2 . 6 2 . 16 11 4 1 15 31 36 . 97 26 8 Melee 45 | . . . . . . . 5 8 5 2 . 3 2 . 11 . . 1 . 8 . . . . . Projectile 157 | . . . . . . 3 17 . . . . 3 . . 5 11 4 . 15 23 36 . 19 13 8 AOE 133 | . . . . . . 3 39 . . . . . . . . . . . . . . . 78 13 . Terrain Rammed . | . . . . . . . . . . . . . . . . . . . . . . . . . . Walls Destroyed . | . . . . . . . . . . . . . . . . . . . . . . . . . . Machines Disabled . | . . . . . . . . . . . . . . . . . . . . . . . . . . Actions | -11 -10 -10 -9 -9 -7 -6 -6 -5 -5 -5 -5 -4 -4 -4 -4 -4 -4 -4 -3 -3 -3 -3 -2 -2 -1 --------- Run | Yrd Mat Min Mat Min Zio Pro Fac Fac Upp Upp Zhi Pro Fac Was Fac Upp Upp War Pro Res Arm Lab Res Tes Acc Total 12147 | 87 492 19 73 34 665 761 2012 657 404 494 167 314 206 119 654 532 330 652 757 667 555 318 589 474 115 Wait 1577 | 7 326 . . . 5 288 184 22 36 29 . 20 20 . 24 68 72 8 237 134 45 8 36 1 7 Move 9668 | 59 155 16 65 34 656 449 1586 596 340 463 148 285 168 119 560 444 254 613 495 488 441 257 489 401 87 Hop . | . . . . . . . . . . . . . . . . . . . . . . . . . . Pick Up 66 | 5 2 2 1 . 2 1 17 2 1 . 1 . 2 . 11 1 . 3 . 1 7 5 1 1 . Fast Attach 135 | 7 . . 1 . . 1 33 10 3 . 11 . 3 . 5 1 . 9 1 2 2 14 8 18 6 Attach 61 | . . . . . . 5 11 1 . . . 1 . . 5 3 . 1 1 3 1 3 15 10 1 Detach 33 | . . . . . . 1 3 . . . . 1 . . 2 1 . 3 2 1 . 2 6 11 . Swap 24 | . 1 . . . . 1 5 4 2 . . . . . 5 . . 2 . . 1 1 1 1 . Drop 112 | 2 1 1 . . 2 3 16 7 5 . 7 1 4 . 9 1 . 12 2 3 7 17 1 9 2 Fire 341 | 7 7 . 6 . . 12 119 . 11 . . 3 . . 5 12 4 . 19 25 38 8 32 21 12 Melee 117 | . . . . . . . 38 15 6 2 . 3 9 . 28 1 . 1 . 10 1 3 . . . Ram 1 | . . . . . . . . . . . . . . . . . . . . . . . . 1 . Kick . | . . . . . . . . . . . . . . . . . . . . . . . . . . Crush . | . . . . . . . . . . . . . . . . . . . . . . . . . . Escape Stasis . | . . . . . . . . . . . . . . . . . . . . . . . . . . Rewire 12 | . . . . . . . . . . . . . . . . . . . . . 12 . . . . Trap . | . . . . . . . . . . . . . . . . . . . . . . . . . . Miscellaneous . | . . . . . . . . . . . . . . . . . . . . . . . . . . Route ------- -11/Scrapyard -10/Materials -10/Mines -9/Materials -9/Mines -7/Zion -6/Proximity Caves -6/Factory (discovered 2 exits: *Fac / *Low) -5/Factory (discovered 2 exits: *Upp x2) -5/Upper Caves -5/Upper Caves (discovered 2 exits: *Fac / *Zhi) -5/Zhirov -4/Proximity Caves -4/Factory (discovered 5 exits: *Res / Upp x2 / Ext x2) -4/Waste -4/Factory (discovered 4 exits: *Upp x2 / Ext x2) -4/Upper Caves -4/Upper Caves -4/Warlord -3/Proximity Caves -3/Research (discovered 4 exits: *Res / *Arm / Qua x2) -3/Armory -3/Lab -2/Research (discovered 2 exits: *Tes x2) -2/Testing -1/Access History --------- Turn | Location | Event 28 | -11/Scrapyard | Discovered new exit (range 15) 97 | -11/Scrapyard | Entered Materials 98 | -10/Materials | Met a group of wandering Federalists 317 | -10/Materials | Build established: Mutant 572 | -10/Materials | Discovered new exit (range 15) 587 | -10/Materials | Entered Mines 587 | -10/Mines | Discovered new exit (range 9) 604 | -10/Mines | Entered Materials 604 | -9/Materials | Evolved 2 slots: Propulsion x2 634 | -9/Materials | Discovered new exit (range 16) 682 | -9/Materials | Entered Mines 708 | -9/Mines | A Derelict revealed a hidden shortcut to a safe place 713 | -9/Mines | Entered Zion 808 | -7/Zion | Discovered new exit (range 15) 904 | -7/Zion | Given A8's code to call for help 1084 | -7/Zion | Met Imprinter 1119 | -7/Zion | Learned Factory garrison access intel 1133 | -7/Zion | Learned 4 Factory zone layouts 1160 | -7/Zion | Acquired unknown access codes intercepted by a Zionite 1312 | -7/Zion | Entered Proximity Caves 1414 | -6/Proximity Caves | Lost 6 parts (2p2n2w) 1795 | -6/Proximity Caves | Received a Behemoth hack from an annoying Tinkerer 2163 | -6/Proximity Caves | Spotted B-75 Beast 2270 | -6/Proximity Caves | Core integrity fell below 50% 2275 | -6/Proximity Caves | Attracted the attention of an 0b10 outpost 2281 | -6/Proximity Caves | Discovered new exit (range 8) 2285 | -6/Proximity Caves | Entered Factory 2285 | -6/Factory | Evolved 6 slots: Power x1, Propulsion x2, Utility x3 2287 | -6/Factory | Loaded intel: 4 garrison access locations 2596 | -6/Factory | Build established: Hacker-Mutant 2623 | -6/Factory | Central database locked down 2666 | -6/Factory | Garrison activated, responded to threat 2889 | -6/Factory | System corruption reached 10% 3311 | -6/Factory | Allied Derelicts emerged from ambush trap array 3543 | -6/Factory | Fabricated H-55 Commando (x2) 3646 | -6/Factory | Lost 4 parts (3n1w) 3705 | -6/Factory | Build established: Scavenger-Mutant 3788 | -6/Factory | Lost 4 parts (2n1u1w) 4028 | -6/Factory | Lost 3 parts (1p2n) 4031 | -6/Factory | Core integrity fell below 50% 4031 | -6/Factory | Spotted B-75 Beast 4049 | -6/Factory | Befriended a Behemoth using the annoying Tinkerer's hack 4063 | -6/Factory | Core integrity fell below 20% 4084 | -6/Factory | Lost 5 parts (1p2n1u1w) 4197 | -6/Factory | Discovered new exit (range 15) 4229 | -6/Factory | Identified exit to Factory 4249 | -6/Factory | Discovered new exit (range 12) 4290 | -6/Factory | Identified exit to Lower Caves 4311 | -6/Factory | Entered another Factory area 4311 | -5/Factory | Evolved 2 slots: Utility x2 4353 | -5/Factory | Central database locked down 4370 | -5/Factory | Fabricated H-55 Commando? 4416 | -5/Factory | Identified exit to Upper Caves 4598 | -5/Factory | Entered Upper Caves 4618 | -5/Upper Caves | Identified exit to Upper Caves 4683 | -5/Upper Caves | Learned 4 Factory zone layouts 4715 | -5/Upper Caves | Spotted B-75 Beast 4746 | -5/Upper Caves | Befriended a Behemoth using the annoying Tinkerer's hack 4796 | -5/Upper Caves | Attracted the attention of an 0b10 checkpoint 4820 | -5/Upper Caves | Entered another Upper Caves area 4838 | -5/Upper Caves | Build established: Hacker-Mutant 4906 | -5/Upper Caves | Encountered a Warlord checkpoint 4932 | -5/Upper Caves | Discovered new exit (range 8) 5033 | -5/Upper Caves | Learned 4 Factory zone layouts 5059 | -5/Upper Caves | Discovered new exit (range 9) 5062 | -5/Upper Caves | Identified exit to Zhirov 5063 | -5/Upper Caves | Entered Zhirov 5063 | -5/Zhirov | Discovered new exit (range 3) 5080 | -5/Zhirov | Learned location of Quarantine (-3) 5080 | -5/Zhirov | Learned location of Testing (-2) 5080 | -5/Zhirov | Learned location of Command (-1) 5091 | -5/Zhirov | Found Alien Artifact 5091 | -5/Zhirov | Identified Integrated Reactor 5091 | -5/Zhirov | Installed Integrated Reactor, increased core energy generation (+10) 5103 | -5/Zhirov | Found Alien Artifact 5143 | -5/Zhirov | Identified exit to Proximity Caves 5144 | -5/Zhirov | Entered Proximity Caves 5164 | -4/Proximity Caves | Spotted B-86 Titan 5171 | -4/Proximity Caves | Learned Research emergency access door positions 5266 | -4/Proximity Caves | Discovered new exit (range 6) 5268 | -4/Proximity Caves | Identified exit to Factory 5268 | -4/Proximity Caves | Entered Factory 5268 | -4/Factory | Evolved 2 slots: Weapon x2 5328 | -4/Factory | Discovered new exit (range 7) 5338 | -4/Factory | Identified exit to Upper Caves 5338 | -4/Factory | Identified exit to Extension 5370 | -4/Factory | Sucked down chute 5370 | -4/Factory | Entered Waste 5377 | -4/Waste | Spotted C-40 Crusher 5384 | -4/Waste | Spotted C-40 Crusher 5385 | -4/Waste | EMP discharged 5387 | -4/Waste | Build established: Hacker-Sprinter 5389 | -4/Waste | Spotted C-40 Crusher 5389 | -4/Waste | Spotted C-40 Crusher 5396 | -4/Waste | Spotted C-40 Crusher 5397 | -4/Waste | Spotted C-40 Crusher 5404 | -4/Waste | Discovered new exit (range 12) 5407 | -4/Waste | Entered Factory 5744 | -4/Factory | Entered Upper Caves 5790 | -4/Upper Caves | Attracted the attention of an 0b10 checkpoint 5834 | -4/Upper Caves | Build established: Hacker-Mutant 5886 | -4/Upper Caves | Learned Research garrison access intel 6019 | -4/Upper Caves | Discovered new exit (range 5) 6021 | -4/Upper Caves | Entered another Upper Caves area 6023 | -4/Upper Caves | Attracted the attention of an 0b10 checkpoint 6202 | -4/Upper Caves | Discovered new exit (range 13) 6208 | -4/Upper Caves | Entered Warlord 6220 | -4/Warlord | System corruption reached 10% 6233 | -4/Warlord | System corruption cleaned by Quarantine Array 6272 | -4/Warlord | Visited the Vortex Lab 6276 | -4/Warlord | Found Prototype Energy Cannon 6276 | -4/Warlord | Identified Vortex Cannon 6278 | -4/Warlord | Warlord's base attacked by MAIN.C 6279 | -4/Warlord | Found Prototype Piercing Weapon 6279 | -4/Warlord | Identified Vortex Lance 6281 | -4/Warlord | Found Vortex Cannon 6283 | -4/Warlord | Found Prototype Energy Gun 6283 | -4/Warlord | Identified Vortex Rifle 6395 | -4/Warlord | Met Warlord 6435 | -4/Warlord | Found Prototype Hackware 6435 | -4/Warlord | Identified Ghost Barrier 6440 | -4/Warlord | Found Prototype Processor 6440 | -4/Warlord | Identified Spectral Analyzer 6442 | -4/Warlord | Found Prototype Device 6442 | -4/Warlord | Identified Thermal Barrier 6447 | -4/Warlord | Found Prototype Reactor 6447 | -4/Warlord | Identified Vortex Chain Reactor 6452 | -4/Warlord | Found Prototype Device 6452 | -4/Warlord | Identified Exp. Phase Shifter 6486 | -4/Warlord | Opened side exit 6493 | -4/Warlord | Discovered new exit (range 9) 6495 | -4/Warlord | Entered Proximity Caves 6500 | -3/Proximity Caves | Attracted the attention of an 0b10 checkpoint 7069 | -3/Proximity Caves | Discovered new exit (range 7) 7071 | -3/Proximity Caves | Entered Research 7071 | -3/Research | Evolved 2 slots: Utility x2 7073 | -3/Research | Loaded intel: 4 garrison access locations 7116 | -3/Research | Central database locked down 7221 | -3/Research | Fabricated H-55 Commando? 7244 | -3/Research | Identified exit to Armory 7244 | -3/Research | Identified exit to Quarantine 7423 | -3/Research | Spotted B-86 Titan 7424 | -3/Research | Repaired Adv. Plasma Cannon 7459 | -3/Research | Discovered new exit (range 14) 7464 | -3/Research | Entered Armory 7772 | -3/Armory | Identified Transdimensional Reconstructor 7772 | -3/Armory | Warped through subspace to slip node 7772 | -3/Armory | Discovered new exit (range 1) 7777 | -3/Armory | Entered Lab 7777 | -3/Lab | Discovered new exit (range 9) 7782 | -3/Lab | Unable to decrypt terminal 7782 | -3/Lab | Opened the door to a hidden lab 7783 | -3/Lab | Gained access to the hidden lab's interior 7783 | -3/Lab | Detected by scanners 7786 | -3/Lab | Found Alien Artifact 7786 | -3/Lab | Identified Core Reset Matrix 7786 | -3/Lab | Used Core Reset Matrix 7790 | -3/Lab | Sensed 3 artifacts in vicinity 7792 | -3/Lab | Found Transdimensional Reconstructor 7794 | -3/Lab | Confronted by A5 7814 | -3/Lab | Destroyed A5 7838 | -3/Lab | Found Prototype Hackware 7838 | -3/Lab | Identified Exp. Hacking Suite 7859 | -3/Lab | Found Integrated Reactor 7859 | -3/Lab | Installed Integrated Reactor, increased core energy generation (+10) 7866 | -3/Lab | Found Core Expander 7866 | -3/Lab | Installed Core Expander, added new Weapon slot 7876 | -3/Lab | Found Prototype Hackware 7876 | -3/Lab | Identified Quantum Router 7882 | -3/Lab | Found Prototype Energy Cannon 7882 | -3/Lab | Identified Potential Cannon 7907 | -3/Lab | Unable to decrypt terminal 7926 | -3/Lab | Unable to decrypt terminal 7928 | -3/Lab | Found LC Capacitor 7966 | -3/Lab | Found Prototype Special Weapon 7966 | -3/Lab | Identified Gui. Remote Datajack 7974 | -3/Lab | Discovered new exit (range 9) 7979 | -3/Lab | Unable to decrypt terminal 7988 | -3/Lab | Entered Research 7988 | -2/Research | Warlord forces began assault on 0b10 7988 | -2/Research | Evolved 2 slots: Propulsion x1, Utility x1 8013 | -2/Research | Identified exit to Testing 8098 | -2/Research | Research machine network offline 8141 | -2/Research | Spotted B-90 Cyclops 8141 | -2/Research | Spotted Tracker 8142 | -2/Research | Spotted Tracker 8160 | -2/Research | Warped through subspace 8168 | -2/Research | Destroyed Tracker 8187 | -2/Research | Destroyed Tracker 8209 | -2/Research | Lost 8 parts (2p3n2u1w) 8224 | -2/Research | Spotted Combat Programmer 8232 | -2/Research | Build established: Wizard-Mutant 8241 | -2/Research | Destroyed Combat Programmer 8246 | -2/Research | Spotted Combat Programmer 8261 | -2/Research | Destroyed Combat Programmer 8298 | -2/Research | Spotted B-90 Cyclops 8312 | -2/Research | Lost 9 parts (1p4n4u) 8377 | -2/Research | Found Prototype Processor 8377 | -2/Research | Identified Exp. Core Analyzer 8421 | -2/Research | Entered Testing 8524 | -2/Testing | Found Prototype Energy Gun 8524 | -2/Testing | Identified Warp Gun 8544 | -2/Testing | Unstable Terrabomb Derivative detonated 8715 | -2/Testing | Lost 3 allies 8716 | -2/Testing | Core integrity fell below 50% 8748 | -2/Testing | Lost 9 parts (2p2n3u2w) 8823 | -2/Testing | Spotted PY-X7LZMXZ9XZ 8825 | -2/Testing | Discovered new exit (range 14) 8843 | -2/Testing | Identified exit to Access 8844 | -2/Testing | Core integrity fell below 20% 8844 | -2/Testing | Entered Access 8844 | -1/Access | Evolved 2 slots: Power x1, Utility x1 8873 | -1/Access | Lost 4 parts (1p2n1w) 9014 | -1/Access | Self-destructed Last Messages --------------- 08989_ Penetrated by Slug. 08992_ Slug penetrates Wall. 08993_ Wall collapses. 08993_ U-05 Engineer builds a Wall. 08993_ Slug penetrates Wall. 09001_ H-88 Terminator knocked back. 09002_ Penetrated by Slug. 09004_ H-88 Terminator Unknown Leg blasted off. 09005_ Slug penetrates Wall. 09005_ U-05 Engineer builds a Wall. 09006_ Penetrated by Slug. 09007_ H-88 Terminator knocked back. 09008_ Penetrated by Slug. 09009_ U-05 Engineer builds a Wall. 09009_ Penetrated by Slug. 09009_ Enh. Nova Cannon destroyed. 09009_ Slug penetrates Wall. 09010_ H-88 Terminator knocked back. 09011_ Penetrated by Slug. 09014_ Adv. Focal Shield destroyed. Map ----- +----------------------------------------------------+ | ?????????????????????????????????????????????????? | | ?????????????????????????????????????????????????? | | ?????????????????????????????????????????????????? | | ?????????????????????????????????????????????????? | | ?????????????????????????????????????????????????? | | ?????????????????????????????????????????????????? | | ?????????????????????????????????????????????????? | | ?????????????????????????????????????????????????? | | ?????????????????????????????????????????????????? | | ?????????????????????????????????????????????????? | | ?????????????????????????????????????????????????? | | ????????????????????????????????##############???? | | ????????????????????????????????# #???? | | ?????????????????########???????# #???? | | ?????????????????# ######### #???? | | ?????????????????# # # #???? | | ?????????????????# # # ! ! #???? | | ?????????????????# # # !! #???? | | ?????????????????# # + !! #???? | | ?????????????????#"" = [# # #???? | | ?????????????????#"" # # #???? | | ?????????????????#"" = # # "" "" #???? | | ?????????????????#S # # ""T"" #???? | | ?????????????????#"" # # """ #???? | | ?????????????????#"" # ##############???? | | ?????????????????#"" /@ #????????????????? | | ?????????????????# # #????????????????? | | ?????????????????# ;] #????????????????? | | ?????????????????########= #????????????????? | | ?????????????????????? ohh #????????????????? | | ???????????????????? % ![ #????????????????? | | ?????????????????? #????????????????? | | ?????????????????+ % #????????????????? | | ?????????????????# #????????????????? | | ?????????????????# #????????????????? | | ?????????????????# u #????????????????? | | ?????????????????# ;#######????????????????? | | ?????????????????# # ???????????????????? | | ???????????????? # # ??????????????????? | | ????????????????## + ??????????????????? | | ?????????????????# % ? ??????????????????? | | ?????????????????# ?? ?????????????????? | | ???????????????????? ??? ????????????????????? | | ?????????????????????? ????????????????????????? | | ?????????????????????????????????????????????????? | | ?????????????????????????????????????????????????? | | ?????????????????????????????????????????????????? | | ?????????????????????????????????????????????????? | | ?????????????????????????????????????????????????? | | ?????????????????????????????????????????????????? | +----------------------------------------------------+ Best States ------------- Heat Dissipation 101 Energy Generation 75 Energy Capacity 1200 Matter Stores 300 Matter Capacity 300 Sight Range 24 Robot Scan Range 15 Terrain Scan Range 16 Terrain Scan Density 10 Jamming Range 12 Cloak Strength 2 Base Temperature (-) 200 Armor Coverage 150 Resistance: KI 30 Utility Shielding 90 Phase Shifting 20 Evasion (%) 77 Targeting Accuracy 8 Core Analysis 11 Offensive Hacking 30 Defensive Hacking 45 Item Schematics ----------------- None Robot Schematics ------------------ None Fabricated ------------ H-55 Commando | x2 | -6/Factory H-55 Commando | x2 | -5/Factory H-55 Commando | x2 | -3/Research Repaired ---------- Adv. Plasma Cannon | 32% | -3/Research Studied --------- Cmb. Linear Gravjet | -2/Testing | Hacked Lgt. Ion Engine | -2/Testing | Hacked Alien Tech Used ----------------- Integrated Reactor Transdimensional Reconstructor Core Reset Matrix Core Expander LC Capacitor Achievements -------------- None Challenges ------------ None Game ------ Seed HellfireDirtyArachnoskeleton Manual? 0 Play Time 02:00:00 Cumulative 228.5 hours Start 2025.12.16 @ 23:06:02 End 2025.12.17 @ 14:36:27 Sessions 7 Manual Loads 0 Difficulty Rogue Special Mode None Game No. 178 Rogue 10 Adventurer 168 Explorer 0 Win Type - Total 15 Types 7/0/5/3/0/0/0/0/0/0 Lore% 73 Gallery% 71 Achievement% 53 Wizard Run 0 Options --------- Layout 1 ASCII 0 Keyboard 0 Movement Mouse Keybinds 0 Fullscreen 1 Font 24/Smallcaps Map View 50x35 Zoom Use 0% Tactical HUD 1 Map Filters NONE Filters NONE Steam 1 RUN: 15d1c6c6-1b6a-4f8b-8ebc-49e8ed07a0e5